[Event "FIDE World Rapid Chess Championship 2021"]
[White "Theodorou, Nikolas"]
[Black "Howell, David W L"]
[WhiteFideId "4262875"]
[BlackFideId "410608"]
[WhiteElo "2559"]
[BlackElo "2624"]
[Result "1/2-1/2"]
[Round "11"]
[TimeControl "900+10"]
[Date "2021.12.28"]
[WhiteClock "0:00:43"]
[BlackClock "0:00:51"]

1. d4 {[%clk 0:15:00]}  d5 {[%clk 0:15:00]} 2. c4 {[%clk 0:15:00]}  c6 {[%clk 0:15:00]} 3. Nf3 {[%clk 0:15:00]}  Nf6 {[%clk 0:15:00]} 4. Nc3 {[%clk 0:15:00]}  dxc4 {[%clk 0:15:00]} 5. e4 {[%clk 0:15:00]}  b5 {[%clk 0:15:00]} 6. Be2 {[%clk 0:15:00]}  b4 {[%clk 0:15:38]} 7. Na4 {[%clk 0:15:46]}  Nxe4 {[%clk 0:15:38]} 8. Bxc4 {[%clk 0:15:46]}  e6 {[%clk 0:15:38]} 9. O-O {[%clk 0:15:46]}  Be7 {[%clk 0:15:38]} 10. Re1 {[%clk 0:15:46]}  Nf6 {[%clk 0:13:31]} 11. Ne5 {[%clk 0:15:22]}  O-O {[%clk 0:13:31]} 12. Nc5 {[%clk 0:14:34]}  a5 {[%clk 0:13:03]} 13. Nxf7 {[%clk 0:12:55]}  Rxf7 {[%clk 0:09:13]} 14. Nxe6 {[%clk 0:12:55]}  Bxe6 {[%clk 0:09:13]} 15. Bxe6 {[%clk 0:12:55]}  Na6 {[%clk 0:07:21]} 16. Bf4 {[%clk 0:08:18]}  Bd6 {[%clk 0:05:44]} 17. Bg5 {[%clk 0:06:03]}  Nc7 {[%clk 0:05:44]} 18. Bxf7+ {[%clk 0:06:03]}  Kxf7 {[%clk 0:05:44]} 19. Rc1 {[%clk 0:06:03]}  Qd7 {[%clk 0:05:44]} 20. Bxf6 {[%clk 0:05:10]}  gxf6 {[%clk 0:00:46]} 21. Qc2 {[%clk 0:05:10]}  f5 {[%clk 0:00:46]} 22. Qc4+ {[%clk 0:05:10]}  Nd5 {[%clk 0:00:14]} 23. Qxc6 {[%clk 0:02:47]}  Qxc6 {[%clk 0:00:14]} 24. Rxc6 {[%clk 0:02:47]}  Rd8 {[%clk 0:00:14]} 25. g3 {[%clk 0:02:47]}  a4 {[%clk 0:00:14]} 26. Ra6 {[%clk 0:02:47]}  a3 {[%clk 0:00:14]} 27. bxa3 {[%clk 0:02:47]}  bxa3 {[%clk 0:00:14]} 28. Rb1 {[%clk 0:02:47]}  Nc3 {[%clk 0:00:14]} 29. Rb7+ {[%clk 0:02:05]}  Ke6 {[%clk 0:00:14]} 30. Rxh7 {[%clk 0:02:05]}  Nxa2 {[%clk 0:00:14]} 31. Ra5 {[%clk 0:02:05]}  Nc3 {[%clk 0:00:14]} 32. Rh6+ {[%clk 0:02:05]}  Kd7 {[%clk 0:00:14]} 33. d5 {[%clk 0:02:05]}  Kc7 {[%clk 0:00:14]} 34. Rh7+ {[%clk 0:00:14]}  Kb6 {[%clk 0:00:38]} 35. Raa7 {[%clk 0:00:14]}  Nxd5 {[%clk 0:00:38]} 36. Rhb7+ {[%clk 0:00:14]}  Kc6 {[%clk 0:00:38]} 37. Rb3 {[%clk 0:00:14]}  Bc5 {[%clk 0:00:38]} 38. Ra6+ {[%clk 0:00:14]}  Nb6 {[%clk 0:00:38]} 39. Raxa3 {[%clk 0:00:14]}  Bxa3 {[%clk 0:00:38]} 40. Rxa3 {[%clk 0:00:14]}  Nd5 {[%clk 0:00:38]} 41. Rf3 {[%clk 0:00:14]}  Rf8 {[%clk 0:00:38]} 42. Kg2 {[%clk 0:00:14]}  Kd6 {[%clk 0:00:38]} 43. Ra3 {[%clk 0:00:14]}  Rb8 {[%clk 0:00:38]} 44. Ra2 {[%clk 0:00:14]}  Ke5 {[%clk 0:00:38]} 45. Re2+ {[%clk 0:00:14]}  Kf6 {[%clk 0:00:51]} 46. Rd2 {[%clk 0:00:43]}  Nc3 {[%clk 0:00:51]} 47. h3 {[%clk 0:00:43]}  Ne4 {[%clk 0:00:51]} 48. Ra2 {[%clk 0:00:43]}  Rb6 {[%clk 0:00:51]} 49. Re2 {[%clk 0:00:43]}  Rb4 {[%clk 0:00:51]} 50. Ra2 {[%clk 0:00:43]}  Kg5 {[%clk 0:00:51]} 51. Rc2 {[%clk 0:00:43]}  Rd4 {[%clk 0:00:51]} 52. Ra2 {[%clk 0:00:43]}  Rd3 {[%clk 0:00:51]} 53. Re2 {[%clk 0:00:43]}  Nc3 {[%clk 0:00:51]} 54. Re3 {[%clk 0:00:43]}  Rxe3 {[%clk 0:00:51]} 55. fxe3 {[%clk 0:00:43]}  Nd5 {[%clk 0:00:51]} 56. Kf3 {[%clk 0:00:43]}  Nf6 {[%clk 0:00:51]} 57. g4 {[%clk 0:00:43]}  fxg4+ {[%clk 0:00:51]} 58. hxg4 {[%clk 0:00:43]}  Nxg4 {[%clk 0:00:51]} 59. Kg2 {[%clk 0:00:43]}  Nxe3+ {[%clk 0:00:51]} 1/2-1/2


[Site "http://www.Chess.com"]

[Event "FIDE World Rapid Chess Championship 2021"]
[White "Kozak, Adam"]
[Black "Dreev, Aleksey"]
[WhiteFideId "753246"]
[BlackFideId "4100107"]
[WhiteElo "2552"]
[BlackElo "2621"]
[Result "1/2-1/2"]
[Round "11"]
[TimeControl "900+10"]
[Date "2021.12.28"]
[WhiteClock "0:00:38"]
[BlackClock "0:00:38"]

1. e4 {[%clk 0:15:00]}  c6 {[%clk 0:15:00]} 2. d4 {[%clk 0:15:00]}  d5 {[%clk 0:15:00]} 3. e5 {[%clk 0:15:00]}  Bf5 {[%clk 0:15:00]} 4. g4 {[%clk 0:15:00]}  Bd7 {[%clk 0:15:00]} 5. Nc3 {[%clk 0:15:00]}  Qc8 {[%clk 0:15:00]} 6. Be2 {[%clk 0:15:24]}  e6 {[%clk 0:15:22]} 7. Be3 {[%clk 0:15:24]}  c5 {[%clk 0:15:22]} 8. Nf3 {[%clk 0:15:24]}  a6 {[%clk 0:14:02]} 9. Qd2 {[%clk 0:14:01]}  b6 {[%clk 0:14:02]} 10. O-O {[%clk 0:13:08]}  h5 {[%clk 0:13:41]} 11. h3 {[%clk 0:08:00]}  hxg4 {[%clk 0:13:16]} 12. hxg4 {[%clk 0:08:00]}  Nh6 {[%clk 0:13:16]} 13. g5 {[%clk 0:08:00]}  Nf5 {[%clk 0:13:16]} 14. Bd3 {[%clk 0:05:04]}  cxd4 {[%clk 0:13:20]} 15. Nxd4 {[%clk 0:04:08]}  Nxd4 {[%clk 0:13:20]} 16. Bxd4 {[%clk 0:04:08]}  Nc6 {[%clk 0:13:20]} 17. Ne2 {[%clk 0:04:08]}  Bc5 {[%clk 0:06:54]} 18. Qf4 {[%clk 0:04:02]}  Nxd4 {[%clk 0:02:36]} 19. Nxd4 {[%clk 0:01:59]}  Bxd4 {[%clk 0:02:36]} 20. Qxd4 {[%clk 0:01:59]}  Qc5 {[%clk 0:02:36]} 21. Qf4 {[%clk 0:01:59]}  Qe7 {[%clk 0:02:36]} 22. Qg4 {[%clk 0:01:59]}  Bb5 {[%clk 0:02:03]} 23. Kg2 {[%clk 0:00:50]}  Kd7 {[%clk 0:02:03]} 24. c4 {[%clk 0:00:50]}  Bc6 {[%clk 0:02:03]} 25. Rfd1 {[%clk 0:00:50]}  Kc7 {[%clk 0:02:03]} 26. cxd5 {[%clk 0:00:16]}  exd5 {[%clk 0:01:10]} 27. Rac1 {[%clk 0:00:16]}  Kb7 {[%clk 0:01:10]} 28. f4 {[%clk 0:00:16]}  Rac8 {[%clk 0:01:10]} 29. Be2 {[%clk 0:00:16]}  Qb4 {[%clk 0:01:10]} 30. b3 {[%clk 0:00:16]}  Rc7 {[%clk 0:01:10]} 31. Bf3 {[%clk 0:00:16]}  Rd8 {[%clk 0:01:10]} 32. f5 {[%clk 0:00:16]}  Qxg4+ {[%clk 0:01:10]} 33. Bxg4 {[%clk 0:00:16]}  d4+ {[%clk 0:00:30]} 34. Kg3 {[%clk 0:00:17]}  d3 {[%clk 0:00:30]} 35. Rd2 {[%clk 0:00:17]}  Rd4 {[%clk 0:00:30]} 36. e6 {[%clk 0:00:17]}  fxe6 {[%clk 0:00:30]} 37. fxe6 {[%clk 0:00:17]}  Be8 {[%clk 0:00:30]} 38. Rxc7+ {[%clk 0:00:17]}  Kxc7 {[%clk 0:00:30]} 39. Bf5 {[%clk 0:00:17]}  Kd6 {[%clk 0:00:30]} 40. Rxd3 {[%clk 0:00:17]}  Rxd3+ {[%clk 0:00:30]} 41. Bxd3 {[%clk 0:00:17]}  a5 {[%clk 0:00:30]} 42. Bf5 {[%clk 0:00:17]}  Ke5 {[%clk 0:00:30]} 43. Bg4 {[%clk 0:00:17]}  Bc6 {[%clk 0:00:30]} 44. a3 {[%clk 0:00:38]}  Kd6 {[%clk 0:00:38]} 45. b4 {[%clk 0:00:38]}  axb4 {[%clk 0:00:38]} 46. axb4 {[%clk 0:00:38]}  Bd5 {[%clk 0:00:38]} 47. Kf4 {[%clk 0:00:38]}  Bxe6 {[%clk 0:00:38]} 48. Bf3 {[%clk 0:00:38]}  Bd7 {[%clk 0:00:38]} 49. Be4 {[%clk 0:00:38]}  Be6 {[%clk 0:00:38]} 50. Bf3 {[%clk 0:00:38]}  Bd7 {[%clk 0:00:38]} 51. Be4 {[%clk 0:00:38]} 1/2-1/2


[Site "http://www.Chess.com"]

[Event "FIDE World Rapid Chess Championship 2021"]
[White "Heimann, Andreas"]
[Black "Martirosyan, Haik M."]
[WhiteFideId "24624632"]
[BlackFideId "13306553"]
[WhiteElo "2616"]
[BlackElo "2377"]
[Result "0-1"]
[Round "11"]
[TimeControl "900+10"]
[Date "2021.12.28"]
[WhiteClock "0:00:37"]
[BlackClock "0:01:05"]

1. d4 {[%clk 0:15:00]}  Nf6 {[%clk 0:15:00]} 2. c4 {[%clk 0:15:00]}  e6 {[%clk 0:15:00]} 3. Nf3 {[%clk 0:15:00]}  b6 {[%clk 0:15:00]} 4. g3 {[%clk 0:15:00]}  Ba6 {[%clk 0:15:00]} 5. b3 {[%clk 0:15:00]}  Bb4+ {[%clk 0:15:00]} 6. Bd2 {[%clk 0:15:00]}  Be7 {[%clk 0:15:00]} 7. Nc3 {[%clk 0:15:00]}  d5 {[%clk 0:15:00]} 8. cxd5 {[%clk 0:15:00]}  exd5 {[%clk 0:15:00]} 9. Bg2 {[%clk 0:15:00]}  O-O {[%clk 0:15:00]} 10. O-O {[%clk 0:15:00]}  Re8 {[%clk 0:16:15]} 11. Ne5 {[%clk 0:16:15]}  Bb7 {[%clk 0:16:15]} 12. Bc1 {[%clk 0:16:15]}  Nbd7 {[%clk 0:16:15]} 13. Bb2 {[%clk 0:16:15]}  Nf8 {[%clk 0:16:15]} 14. e3 {[%clk 0:16:15]}  Ne6 {[%clk 0:15:24]} 15. Rc1 {[%clk 0:14:33]}  c6 {[%clk 0:13:07]} 16. Ne2 {[%clk 0:14:38]}  Rc8 {[%clk 0:13:07]} 17. Bh3 {[%clk 0:13:39]}  Rc7 {[%clk 0:11:21]} 18. Qd3 {[%clk 0:13:39]}  Bd6 {[%clk 0:11:21]} 19. Bg2 {[%clk 0:13:39]}  Qc8 {[%clk 0:11:02]} 20. Rfd1 {[%clk 0:12:00]}  Ba6 {[%clk 0:11:02]} 21. Qd2 {[%clk 0:10:12]}  c5 {[%clk 0:10:01]} 22. Nf4 {[%clk 0:10:12]}  Nxf4 {[%clk 0:09:37]} 23. exf4 {[%clk 0:08:28]}  c4 {[%clk 0:09:37]} 24. bxc4 {[%clk 0:08:28]}  Bxc4 {[%clk 0:09:37]} 25. Nxc4 {[%clk 0:08:28]}  Rxc4 {[%clk 0:09:37]} 26. Qd3 {[%clk 0:08:28]}  b5 {[%clk 0:08:13]} 27. Qb3 {[%clk 0:08:05]}  Qd7 {[%clk 0:08:13]} 28. Bf1 {[%clk 0:08:05]}  Bf8 {[%clk 0:08:13]} 29. Bxc4 {[%clk 0:07:32]}  dxc4 {[%clk 0:06:20]} 30. Qf3 {[%clk 0:07:32]}  Nd5 {[%clk 0:06:20]} 31. Re1 {[%clk 0:07:32]}  Rd8 {[%clk 0:06:20]} 32. a3 {[%clk 0:07:32]}  f6 {[%clk 0:06:09]} 33. f5 {[%clk 0:05:43]}  Rc8 {[%clk 0:06:09]} 34. Rc2 {[%clk 0:05:43]}  a5 {[%clk 0:06:09]} 35. Rec1 {[%clk 0:04:34]}  Nb6 {[%clk 0:05:14]} 36. d5 {[%clk 0:04:34]}  Qxd5 {[%clk 0:05:14]} 37. Qg4 {[%clk 0:03:48]}  Qf7 {[%clk 0:03:39]} 38. Re1 {[%clk 0:01:24]}  Na4 {[%clk 0:03:16]} 39. Bd4 {[%clk 0:01:24]}  c3 {[%clk 0:03:16]} 40. Re6 {[%clk 0:01:24]}  Rc4 {[%clk 0:03:16]} 41. Qe4 {[%clk 0:00:40]}  Qd7 {[%clk 0:02:13]} 42. Re8 {[%clk 0:00:40]}  Rxd4 {[%clk 0:02:13]} 43. Qe6+ {[%clk 0:00:40]}  Qxe6 {[%clk 0:02:13]} 44. fxe6 {[%clk 0:00:40]}  Re4 {[%clk 0:02:13]} 45. f3 {[%clk 0:00:40]}  Re5 {[%clk 0:02:13]} 46. Kf2 {[%clk 0:00:40]}  Nc5 {[%clk 0:02:13]} 47. Rxc3 {[%clk 0:00:37]}  Nxe6 {[%clk 0:01:05]} 48. f4 {[%clk 0:00:37]}  Rc5 {[%clk 0:01:05]} 49. Re3 {[%clk 0:00:37]}  Nc7 {[%clk 0:01:05]} 50. Rc8 {[%clk 0:00:37]}  Nd5 {[%clk 0:01:05]} 51. Ree8 {[%clk 0:00:37]}  Rxc8 {[%clk 0:01:05]} 52. Rxc8 {[%clk 0:00:37]}  Kf7 {[%clk 0:01:05]} 53. Rb8 {[%clk 0:00:37]}  Nc3 {[%clk 0:01:05]} 54. Rc8 {[%clk 0:00:37]}  Ne4+ {[%clk 0:01:05]} 55. Ke3 {[%clk 0:00:37]}  Nd6 {[%clk 0:01:05]} 56. Rc7+ {[%clk 0:00:37]}  Ke6 {[%clk 0:01:05]} 57. Kd4 {[%clk 0:00:37]}  Nf5+ {[%clk 0:01:05]} 58. Ke4 {[%clk 0:00:37]}  Bxa3 {[%clk 0:01:05]} 0-1


[Site "http://www.Chess.com"]

[Event "FIDE World Rapid Chess Championship 2021"]
[White "Efimenko, Zahar"]
[Black "Sankalp, Gupta"]
[WhiteFideId "14107201"]
[BlackFideId "5097010"]
[WhiteElo "2609"]
[BlackElo "2266"]
[Result "1-0"]
[Round "11"]
[TimeControl "900+10"]
[Date "2021.12.28"]
[WhiteClock "0:00:52"]
[BlackClock "0:00:00"]

1. Nf3 {[%clk 0:15:00]}  d5 {[%clk 0:15:00]} 2. g3 {[%clk 0:15:00]}  c5 {[%clk 0:15:00]} 3. Bg2 {[%clk 0:15:00]}  Nf6 {[%clk 0:15:00]} 4. O-O {[%clk 0:15:00]}  e6 {[%clk 0:15:00]} 5. b3 {[%clk 0:15:00]}  Be7 {[%clk 0:15:00]} 6. c4 {[%clk 0:15:00]}  d4 {[%clk 0:15:00]} 7. e3 {[%clk 0:15:00]}  Nc6 {[%clk 0:15:00]} 8. exd4 {[%clk 0:15:00]}  cxd4 {[%clk 0:15:00]} 9. d3 {[%clk 0:15:00]}  O-O {[%clk 0:15:00]} 10. Qe2 {[%clk 0:15:00]}  Nd7 {[%clk 0:15:00]} 11. Ba3 {[%clk 0:14:27]}  e5 {[%clk 0:14:55]} 12. Bxe7 {[%clk 0:13:30]}  Qxe7 {[%clk 0:12:54]} 13. Re1 {[%clk 0:13:30]}  f5 {[%clk 0:12:54]} 14. Nbd2 {[%clk 0:13:30]}  a5 {[%clk 0:12:54]} 15. Nh4 {[%clk 0:13:30]}  Nb4 {[%clk 0:12:33]} 16. Ndf3 {[%clk 0:12:43]}  g5 {[%clk 0:09:58]} 17. Nxf5 {[%clk 0:12:43]}  Rxf5 {[%clk 0:09:58]} 18. Nxd4 {[%clk 0:12:43]}  Rf6 {[%clk 0:09:58]} 19. a3 {[%clk 0:08:45]}  Na6 {[%clk 0:08:05]} 20. Bd5+ {[%clk 0:08:45]}  Kg7 {[%clk 0:08:05]} 21. Nb5 {[%clk 0:07:50]}  Nb6 {[%clk 0:06:24]} 22. Qxe5 {[%clk 0:07:50]}  Qxe5 {[%clk 0:06:24]} 23. Rxe5 {[%clk 0:07:50]}  Nxd5 {[%clk 0:06:06]} 24. Rxg5+ {[%clk 0:06:01]}  Kf7 {[%clk 0:06:06]} 25. Rxd5 {[%clk 0:06:01]}  Be6 {[%clk 0:06:06]} 26. Re5 {[%clk 0:06:01]}  Bd7 {[%clk 0:06:06]} 27. d4 {[%clk 0:05:35]}  Re8 {[%clk 0:05:05]} 28. f4 {[%clk 0:05:35]}  Bxb5 {[%clk 0:05:05]} 29. cxb5 {[%clk 0:03:58]}  Nc7 {[%clk 0:04:18]} 30. Rc1 {[%clk 0:03:58]}  Ne6 {[%clk 0:04:18]} 31. d5 {[%clk 0:03:07]}  Nd8 {[%clk 0:03:02]} 32. Rc7+ {[%clk 0:03:07]}  Kf8 {[%clk 0:03:02]} 33. Kg2 {[%clk 0:03:07]}  h6 {[%clk 0:03:02]} 34. a4 {[%clk 0:03:07]}  Rd6 {[%clk 0:02:53]} 35. Rf5+ {[%clk 0:01:18]}  Kg8 {[%clk 0:02:53]} 36. Kf3 {[%clk 0:01:18]}  b6 {[%clk 0:02:53]} 37. g4 {[%clk 0:01:32]}  Re1 {[%clk 0:00:32]} 38. g5 {[%clk 0:01:32]}  hxg5 {[%clk 0:00:32]} 39. fxg5 {[%clk 0:01:32]}  Rf1+ {[%clk 0:00:32]} 40. Kg4 {[%clk 0:01:32]}  Rxf5 {[%clk 0:00:32]} 41. Kxf5 {[%clk 0:01:32]}  Rxd5+ {[%clk 0:00:32]} 42. Kf6 {[%clk 0:01:32]}  Rd6+ {[%clk 0:00:32]} 43. Ke7 {[%clk 0:01:32]}  Nf7 {[%clk 0:00:32]} 44. Rc8+ {[%clk 0:00:52]}  Kg7 {[%clk 0:00:00]} 45. Rf8 {[%clk 0:00:52]}  Nxg5 {[%clk 0:00:00]} 46. Kxd6 {[%clk 0:00:52]}  Kxf8 {[%clk 0:00:00]} 47. Kc6 {[%clk 0:00:52]}  Ke7 {[%clk 0:00:00]} 48. Kxb6 {[%clk 0:00:52]}  Kd7 {[%clk 0:00:00]} 49. Ka7 {[%clk 0:00:52]} 1-0


[Site "http://www.Chess.com"]

[Event "FIDE World Rapid Chess Championship 2021"]
[White "Petrosyan, Manuel"]
[Black "Adly, Ahmed"]
[WhiteFideId "13300857"]
[BlackFideId "10601619"]
[WhiteElo "2514"]
[BlackElo "2597"]
[Result "1/2-1/2"]
[Round "11"]
[TimeControl "900+10"]
[Date "2021.12.28"]
[WhiteClock "0:01:03"]
[BlackClock "0:00:17"]

1. d4 {[%clk 0:15:00]}  Nf6 {[%clk 0:15:00]} 2. Nf3 {[%clk 0:15:00]}  e6 {[%clk 0:15:00]} 3. c4 {[%clk 0:15:00]}  Bb4+ {[%clk 0:15:00]} 4. Nbd2 {[%clk 0:15:00]}  O-O {[%clk 0:15:00]} 5. g3 {[%clk 0:15:04]}  b6 {[%clk 0:15:22]} 6. Bg2 {[%clk 0:15:04]}  Bb7 {[%clk 0:15:22]} 7. O-O {[%clk 0:15:04]}  d5 {[%clk 0:15:22]} 8. b3 {[%clk 0:15:04]}  c5 {[%clk 0:14:03]} 9. Bb2 {[%clk 0:13:54]}  Nc6 {[%clk 0:14:03]} 10. Rc1 {[%clk 0:13:39]}  Rc8 {[%clk 0:12:01]} 11. cxd5 {[%clk 0:09:50]}  Nxd5 {[%clk 0:12:01]} 12. a3 {[%clk 0:09:35]}  Bxd2 {[%clk 0:07:48]} 13. Qxd2 {[%clk 0:09:35]}  Na5 {[%clk 0:07:48]} 14. Qd3 {[%clk 0:09:35]}  Nf6 {[%clk 0:07:48]} 15. Nd2 {[%clk 0:09:16]}  Bxg2 {[%clk 0:07:22]} 16. Kxg2 {[%clk 0:04:48]}  cxd4 {[%clk 0:07:22]} 17. Bxd4 {[%clk 0:04:48]}  Nc6 {[%clk 0:04:36]} 18. Bxf6 {[%clk 0:04:04]}  Qxd3 {[%clk 0:04:36]} 19. exd3 {[%clk 0:04:04]}  gxf6 {[%clk 0:04:36]} 20. Ne4 {[%clk 0:04:04]}  Nd4 {[%clk 0:04:36]} 21. Nxf6+ {[%clk 0:02:34]}  Kg7 {[%clk 0:02:32]} 22. Nh5+ {[%clk 0:02:34]}  Kh6 {[%clk 0:02:32]} 23. Nf4 {[%clk 0:02:34]}  Nxb3 {[%clk 0:02:32]} 24. Rce1 {[%clk 0:02:34]}  Rc3 {[%clk 0:02:32]} 25. Re5 {[%clk 0:02:34]}  Rd8 {[%clk 0:02:32]} 26. Rh5+ {[%clk 0:00:20]}  Kg7 {[%clk 0:03:48]} 27. Rg5+ {[%clk 0:00:20]}  Kf6 {[%clk 0:03:48]} 28. Rh5 {[%clk 0:00:20]}  Nc5 {[%clk 0:03:48]} 29. Rxh7 {[%clk 0:00:20]}  Nxd3 {[%clk 0:03:48]} 30. Nxd3 {[%clk 0:00:20]}  Rcxd3 {[%clk 0:03:48]} 31. Rc1 {[%clk 0:00:20]}  Kg6 {[%clk 0:03:48]} 32. Rh4 {[%clk 0:00:20]}  Rxa3 {[%clk 0:03:48]} 33. Rc7 {[%clk 0:00:36]}  Rd5 {[%clk 0:02:50]} 34. Rg4+ {[%clk 0:00:36]}  Kf6 {[%clk 0:02:50]} 35. Rf4+ {[%clk 0:00:36]}  Rf5 {[%clk 0:02:50]} 36. Rxf5+ {[%clk 0:00:36]}  exf5 {[%clk 0:02:50]} 37. h4 {[%clk 0:00:36]}  b5 {[%clk 0:02:50]} 38. Rb7 {[%clk 0:00:36]}  a6 {[%clk 0:02:50]} 39. Rb6+ {[%clk 0:00:36]}  Kg7 {[%clk 0:02:50]} 40. h5 {[%clk 0:00:36]}  Ra4 {[%clk 0:01:47]} 41. h6+ {[%clk 0:00:49]}  Kh7 {[%clk 0:01:47]} 42. Kh3 {[%clk 0:00:49]}  Kg8 {[%clk 0:01:47]} 43. Rb8+ {[%clk 0:00:49]}  Kh7 {[%clk 0:01:47]} 44. Rb6 {[%clk 0:00:49]}  b4 {[%clk 0:01:47]} 45. Kh4 {[%clk 0:00:49]}  f4 {[%clk 0:01:47]} 46. g4 {[%clk 0:01:03]}  f3 {[%clk 0:00:17]} 47. g5 {[%clk 0:01:03]}  Ra2 {[%clk 0:00:17]} 48. Rb7 {[%clk 0:01:03]}  Kg6 {[%clk 0:00:17]} 49. Rb6+ {[%clk 0:01:03]}  Kh7 {[%clk 0:00:17]} 50. Rb7 {[%clk 0:01:03]}  Kg6 {[%clk 0:00:17]} 51. Rb6+ {[%clk 0:01:03]} 1/2-1/2


[Site "http://www.Chess.com"]

[Event "FIDE World Rapid Chess Championship 2021"]
[White "Fridman, Daniel"]
[Black "Timofeev, Artyom"]
[WhiteFideId "11600454"]
[BlackFideId "4140419"]
[WhiteElo "2542"]
[BlackElo "2591"]
[Result "1/2-1/2"]
[Round "11"]
[TimeControl "900+10"]
[Date "2021.12.28"]
[WhiteClock "0:01:13"]
[BlackClock "0:00:55"]

1. d4 {[%clk 0:15:00]}  d5 {[%clk 0:15:00]} 2. c4 {[%clk 0:15:00]}  dxc4 {[%clk 0:15:00]} 3. e3 {[%clk 0:15:00]}  Nf6 {[%clk 0:15:00]} 4. Bxc4 {[%clk 0:15:00]}  e6 {[%clk 0:15:00]} 5. Nf3 {[%clk 0:15:00]}  c5 {[%clk 0:16:18]} 6. O-O {[%clk 0:15:26]}  a6 {[%clk 0:16:18]} 7. dxc5 {[%clk 0:15:26]}  Bxc5 {[%clk 0:16:18]} 8. Qxd8+ {[%clk 0:15:26]}  Kxd8 {[%clk 0:16:18]} 9. Be2 {[%clk 0:15:26]}  Ke7 {[%clk 0:16:18]} 10. Ne5 {[%clk 0:15:26]}  Bd7 {[%clk 0:16:18]} 11. Bf3 {[%clk 0:15:26]}  Nc6 {[%clk 0:16:18]} 12. Nxd7 {[%clk 0:15:26]}  Nxd7 {[%clk 0:16:18]} 13. Bxc6 {[%clk 0:15:26]}  bxc6 {[%clk 0:16:18]} 14. b3 {[%clk 0:15:26]}  a5 {[%clk 0:16:18]} 15. Bb2 {[%clk 0:15:26]}  f6 {[%clk 0:16:18]} 16. Nc3 {[%clk 0:15:19]}  Rhb8 {[%clk 0:15:21]} 17. Ne4 {[%clk 0:15:19]}  Bb4 {[%clk 0:15:21]} 18. Rac1 {[%clk 0:14:00]}  Ra6 {[%clk 0:14:30]} 19. Rfd1 {[%clk 0:14:00]}  f5 {[%clk 0:13:46]} 20. Ng5 {[%clk 0:11:53]}  h6 {[%clk 0:13:06]} 21. Nf3 {[%clk 0:09:58]}  g5 {[%clk 0:13:06]} 22. Rc4 {[%clk 0:09:58]}  g4 {[%clk 0:13:07]} 23. Nh4 {[%clk 0:08:36]}  Rg8 {[%clk 0:10:54]} 24. e4 {[%clk 0:08:41]}  f4 {[%clk 0:10:54]} 25. e5 {[%clk 0:08:41]}  f3 {[%clk 0:08:26]} 26. gxf3 {[%clk 0:07:56]}  gxf3+ {[%clk 0:08:26]} 27. Kf1 {[%clk 0:07:56]}  Ke8 {[%clk 0:08:26]} 28. Nxf3 {[%clk 0:07:56]}  Be7 {[%clk 0:08:26]} 29. Bc1 {[%clk 0:07:04]}  h5 {[%clk 0:07:04]} 30. h4 {[%clk 0:07:04]}  Rf8 {[%clk 0:07:04]} 31. Rc3 {[%clk 0:05:34]}  c5 {[%clk 0:06:39]} 32. Bg5 {[%clk 0:03:47]}  Rf5 {[%clk 0:05:22]} 33. Bxe7 {[%clk 0:03:47]}  Kxe7 {[%clk 0:05:22]} 34. Re3 {[%clk 0:03:47]}  a4 {[%clk 0:05:22]} 35. Rd2 {[%clk 0:02:21]}  axb3 {[%clk 0:04:58]} 36. Rxb3 {[%clk 0:02:21]}  Nxe5 {[%clk 0:04:58]} 37. Rb7+ {[%clk 0:02:21]}  Kf6 {[%clk 0:04:58]} 38. Ng5 {[%clk 0:02:21]}  Rf4 {[%clk 0:04:58]} 39. Re2 {[%clk 0:01:27]}  Kf5 {[%clk 0:04:02]} 40. Rh7 {[%clk 0:01:27]}  Ng6 {[%clk 0:03:34]} 41. Rxh5 {[%clk 0:01:13]}  Rxh4 {[%clk 0:03:34]} 42. Rxh4 {[%clk 0:01:13]}  Nxh4 {[%clk 0:03:34]} 43. Nf7 {[%clk 0:01:13]}  Nf3 {[%clk 0:03:34]} 44. Rc2 {[%clk 0:01:13]}  Kf6 {[%clk 0:03:34]} 45. Nd8 {[%clk 0:01:13]}  c4 {[%clk 0:03:34]} 46. Rc3 {[%clk 0:01:08]}  Nd2+ {[%clk 0:01:11]} 47. Ke1 {[%clk 0:01:08]}  Rxa2 {[%clk 0:01:11]} 48. Nc6 {[%clk 0:01:08]}  e5 {[%clk 0:01:11]} 49. Nb4 {[%clk 0:01:08]}  Rb2 {[%clk 0:01:11]} 50. Nc2 {[%clk 0:01:08]}  Ne4 {[%clk 0:01:11]} 51. Rxc4 {[%clk 0:01:08]}  Nd6 {[%clk 0:00:55]} 52. Rc6 {[%clk 0:01:13]}  Ke6 {[%clk 0:00:55]} 53. Ne3 {[%clk 0:01:13]}  Rb1+ {[%clk 0:00:55]} 54. Ke2 {[%clk 0:01:13]}  Kd7 {[%clk 0:00:55]} 55. Rc5 {[%clk 0:01:13]}  Ke6 {[%clk 0:00:55]} 1/2-1/2


[Site "http://www.Chess.com"]

[Event "FIDE World Rapid Chess Championship 2021"]
[White "Quparadze, Giga"]
[Black "Narayanan.S.L, "]
[WhiteFideId "13602250"]
[BlackFideId "5058422"]
[WhiteElo "2583"]
[BlackElo "2482"]
[Result "0-1"]
[Round "11"]
[TimeControl "900+10"]
[Date "2021.12.28"]
[WhiteClock "0:03:17"]
[BlackClock "0:00:48"]

1. e4 {[%clk 0:15:00]}  c5 {[%clk 0:15:00]} 2. Nf3 {[%clk 0:15:00]}  e6 {[%clk 0:15:00]} 3. d4 {[%clk 0:15:00]}  cxd4 {[%clk 0:15:00]} 4. Nxd4 {[%clk 0:15:00]}  Nf6 {[%clk 0:15:00]} 5. Nc3 {[%clk 0:15:00]}  Nc6 {[%clk 0:15:00]} 6. Ndb5 {[%clk 0:15:00]}  d6 {[%clk 0:15:00]} 7. Bf4 {[%clk 0:15:00]}  e5 {[%clk 0:15:00]} 8. Bg5 {[%clk 0:15:00]}  a6 {[%clk 0:15:00]} 9. Na3 {[%clk 0:15:00]}  b5 {[%clk 0:15:00]} 10. Nd5 {[%clk 0:15:00]}  Be7 {[%clk 0:15:00]} 11. Bxf6 {[%clk 0:15:00]}  Bxf6 {[%clk 0:15:00]} 12. c3 {[%clk 0:15:00]}  Rb8 {[%clk 0:15:00]} 13. Nc2 {[%clk 0:15:00]}  Bg5 {[%clk 0:15:00]} 14. g3 {[%clk 0:15:00]}  O-O {[%clk 0:16:44]} 15. Bg2 {[%clk 0:16:59]}  a5 {[%clk 0:16:44]} 16. a3 {[%clk 0:16:59]}  Ne7 {[%clk 0:16:44]} 17. Nce3 {[%clk 0:16:59]}  Bxe3 {[%clk 0:16:44]} 18. Nxe3 {[%clk 0:16:59]}  Be6 {[%clk 0:16:44]} 19. O-O {[%clk 0:16:59]}  Qc7 {[%clk 0:15:31]} 20. Re1 {[%clk 0:17:17]}  Rfd8 {[%clk 0:15:31]} 21. Re2 {[%clk 0:17:17]}  b4 {[%clk 0:14:09]} 22. cxb4 {[%clk 0:16:30]}  axb4 {[%clk 0:14:09]} 23. Rd2 {[%clk 0:16:30]}  Nc6 {[%clk 0:14:09]} 24. Rc1 {[%clk 0:16:30]}  Qd7 {[%clk 0:14:09]} 25. Bf1 {[%clk 0:16:12]}  Nd4 {[%clk 0:11:15]} 26. Bc4 {[%clk 0:16:12]}  bxa3 {[%clk 0:11:15]} 27. bxa3 {[%clk 0:12:43]}  Bxc4 {[%clk 0:09:37]} 28. Nxc4 {[%clk 0:12:43]}  Rdc8 {[%clk 0:09:37]} 29. Rd3 {[%clk 0:12:24]}  Qc6 {[%clk 0:07:48]} 30. Re3 {[%clk 0:10:13]}  h6 {[%clk 0:07:48]} 31. Kg2 {[%clk 0:09:35]}  d5 {[%clk 0:05:27]} 32. Nxe5 {[%clk 0:09:35]}  Qxc1 {[%clk 0:05:27]} 33. Qxd4 {[%clk 0:09:35]}  Rb1 {[%clk 0:05:27]} 34. Qxd5 {[%clk 0:09:35]}  Rf8 {[%clk 0:04:44]} 35. Ng6 {[%clk 0:09:08]}  Qf1+ {[%clk 0:04:44]} 36. Kf3 {[%clk 0:09:08]}  Rb2 {[%clk 0:04:44]} 37. Kg4 {[%clk 0:08:02]}  h5+ {[%clk 0:02:49]} 38. Kh4 {[%clk 0:08:02]}  Rb5 {[%clk 0:02:49]} 39. Qa2 {[%clk 0:06:49]}  Re8 {[%clk 0:02:18]} 40. e5 {[%clk 0:06:49]}  Qd1 {[%clk 0:02:18]} 41. Re4 {[%clk 0:06:49]}  Rbxe5 {[%clk 0:01:54]} 42. Rf4 {[%clk 0:04:44]}  Rf5 {[%clk 0:01:54]} 43. Kh3 {[%clk 0:04:44]}  Qd7 {[%clk 0:01:54]} 44. Kg2 {[%clk 0:03:17]}  Qc6+ {[%clk 0:00:48]} 0-1


[Site "http://www.Chess.com"]